[Event "Titled Tuesday Blitz June 21 Late 2022"]
[White "Hoffmann, Asa"]
[Black "Dubov, Daniil"]
[WhiteFideId "2001470"]
[BlackFideId "24126055"]
[WhiteElo "2117"]
[BlackElo "2791"]
[Result "0-1"]
[Round "02"]
[TimeControl "180+1"]
[Date "2022.06.22"]
[WhiteClock "0:01:14"]
[BlackClock "0:02:08"]

1. d4 {[%clk 0:02:54]}  d5 {[%clk 0:02:58]} 2. Bg5 {[%clk 0:02:53]}  c6 {[%clk 0:02:59]} 3. e3 {[%clk 0:02:52]}  Qb6 {[%clk 0:02:58]} 4. b3 {[%clk 0:02:52]}  f6 {[%clk 0:02:57]} 5. Bf4 {[%clk 0:02:51]}  Nd7 {[%clk 0:02:56]} 6. Nf3 {[%clk 0:02:50]}  g5 {[%clk 0:02:50]} 7. Bg3 {[%clk 0:02:50]}  h5 {[%clk 0:02:49]} 8. h4 {[%clk 0:02:43]}  g4 {[%clk 0:02:49]} 9. Nfd2 {[%clk 0:02:42]}  e5 {[%clk 0:02:50]} 10. c3 {[%clk 0:02:40]}  Ne7 {[%clk 0:02:48]} 11. Qc2 {[%clk 0:02:39]}  Bg7 {[%clk 0:02:47]} 12. c4 {[%clk 0:02:34]}  exd4 {[%clk 0:02:45]} 13. exd4 {[%clk 0:02:29]}  Qxd4 {[%clk 0:02:46]} 14. Nc3 {[%clk 0:02:29]}  f5 {[%clk 0:02:46]} 15. Rc1 {[%clk 0:02:23]}  O-O {[%clk 0:02:43]} 16. Ne2 {[%clk 0:02:22]}  Qf6 {[%clk 0:02:40]} 17. Nf4 {[%clk 0:02:17]}  Bh6 {[%clk 0:02:40]} 18. Bd3 {[%clk 0:02:07]}  Nc5 {[%clk 0:02:38]} 19. O-O {[%clk 0:02:06]}  Bxf4 {[%clk 0:02:36]} 20. Bxf4 {[%clk 0:02:06]}  Ne6 {[%clk 0:02:37]} 21. Bd6 {[%clk 0:01:57]}  Rf7 {[%clk 0:02:29]} 22. Rfe1 {[%clk 0:01:55]}  Ng6 {[%clk 0:02:27]} 23. g3 {[%clk 0:01:48]}  Bd7 {[%clk 0:02:24]} 24. c5 {[%clk 0:01:44]}  Kg7 {[%clk 0:02:21]} 25. Nf1 {[%clk 0:01:44]}  f4 {[%clk 0:02:20]} 26. Bxg6 {[%clk 0:01:40]}  Nd4 {[%clk 0:02:16]} 27. Qd3 {[%clk 0:01:33]}  Nf3+ {[%clk 0:02:15]} 28. Kg2 {[%clk 0:01:30]}  Nxe1+ {[%clk 0:02:14]} 29. Rxe1 {[%clk 0:01:30]}  f3+ {[%clk 0:02:14]} 30. Kg1 {[%clk 0:01:29]}  Qxg6 {[%clk 0:02:15]} 31. Qd4+ {[%clk 0:01:28]}  Kh7 {[%clk 0:02:14]} 32. Ne3 {[%clk 0:01:26]}  Re8 {[%clk 0:02:13]} 33. Rd1 {[%clk 0:01:22]}  Re4 {[%clk 0:02:11]} 34. Qd3 {[%clk 0:01:21]}  Bf5 {[%clk 0:02:10]} 35. Nxf5 {[%clk 0:01:17]}  Qxf5 {[%clk 0:02:11]} 36. Bf4 {[%clk 0:01:15]}  Re1+ {[%clk 0:02:09]} 37. Kh2 {[%clk 0:01:14]}  Qxd3 {[%clk 0:02:09]} 38. Rxd3 {[%clk 0:01:14]}  Rfe7 {[%clk 0:02:08]} 0-1


[Site "https://www.chess.com"]

[Event "Titled Tuesday Blitz June 21 Late 2022"]
[White "Holt, Conrad"]
[Black "Suder, Jakub"]
[WhiteFideId "2034387"]
[BlackFideId "1195310"]
[WhiteElo "2586"]
[BlackElo "2058"]
[Result "1-0"]
[Round "02"]
[TimeControl "180+1"]
[Date "2022.06.21"]
[WhiteClock "0:01:00"]
[BlackClock "0:00:54"]

1. d4 {[%clk 0:02:57]}  d5 {[%clk 0:03:00]} 2. c4 {[%clk 0:02:57]}  dxc4 {[%clk 0:03:00]} 3. e3 {[%clk 0:02:56]}  e5 {[%clk 0:02:59]} 4. Bxc4 {[%clk 0:02:55]}  exd4 {[%clk 0:03:00]} 5. exd4 {[%clk 0:02:56]}  Nf6 {[%clk 0:03:00]} 6. Qb3 {[%clk 0:02:55]}  Qe7+ {[%clk 0:02:52]} 7. Ne2 {[%clk 0:02:56]}  Qb4+ {[%clk 0:02:52]} 8. Nbc3 {[%clk 0:02:56]}  Qxb3 {[%clk 0:02:52]} 9. Bxb3 {[%clk 0:02:56]}  c6 {[%clk 0:02:52]} 10. O-O {[%clk 0:02:56]}  Be7 {[%clk 0:02:51]} 11. Re1 {[%clk 0:02:54]}  O-O {[%clk 0:02:50]} 12. Bg5 {[%clk 0:02:49]}  h6 {[%clk 0:02:49]} 13. Ng3 {[%clk 0:02:48]}  Bd8 {[%clk 0:02:40]} 14. Bf4 {[%clk 0:02:44]}  Nbd7 {[%clk 0:02:37]} 15. Nf5 {[%clk 0:02:35]}  Nb6 {[%clk 0:02:26]} 16. Nd6 {[%clk 0:02:27]}  Bc7 {[%clk 0:02:26]} 17. Be5 {[%clk 0:02:19]}  Bxd6 {[%clk 0:02:21]} 18. Bxd6 {[%clk 0:02:19]}  Re8 {[%clk 0:02:21]} 19. Be5 {[%clk 0:02:11]}  Nfd5 {[%clk 0:02:15]} 20. Ne4 {[%clk 0:02:09]}  f6 {[%clk 0:02:06]} 21. Bg3 {[%clk 0:01:55]}  Kf8 {[%clk 0:01:31]} 22. Nc5 {[%clk 0:01:48]}  a5 {[%clk 0:01:15]} 23. Bd6+ {[%clk 0:01:45]}  Kf7 {[%clk 0:01:15]} 24. Rxe8 {[%clk 0:01:45]}  Kxe8 {[%clk 0:01:15]} 25. Re1+ {[%clk 0:01:45]}  Kd8 {[%clk 0:01:13]} 26. a4 {[%clk 0:01:25]}  Ra7 {[%clk 0:01:06]} 27. Bf8 {[%clk 0:01:23]}  g6 {[%clk 0:01:01]} 28. Bxh6 {[%clk 0:01:21]}  Bf5 {[%clk 0:01:01]} 29. h3 {[%clk 0:01:16]}  Nd7 {[%clk 0:00:59]} 30. Ne6+ {[%clk 0:01:11]}  Bxe6 {[%clk 0:00:56]} 31. Rxe6 {[%clk 0:01:11]}  Ra6 {[%clk 0:00:52]} 32. Bxd5 {[%clk 0:01:03]}  cxd5 {[%clk 0:00:53]} 33. Rxa6 {[%clk 0:01:03]}  bxa6 {[%clk 0:00:54]} 34. Bd2 {[%clk 0:01:03]}  Ke7 {[%clk 0:00:54]} 35. Bxa5 {[%clk 0:01:03]}  Kd6 {[%clk 0:00:53]} 36. Kf1 {[%clk 0:01:02]}  Nb8 {[%clk 0:00:53]} 37. Ke2 {[%clk 0:01:00]}  Nc6 {[%clk 0:00:54]} 38. Bc3 {[%clk 0:01:00]} 1-0


[Site "https://www.chess.com"]

[Event "Titled Tuesday Blitz June 21 Late 2022"]
[White "Isajevsky, Anton"]
[Black "Khismatullin, Denis"]
[WhiteFideId "4142500"]
[BlackFideId "4142578"]
[WhiteElo "2510"]
[BlackElo "2543"]
[Result "0-1"]
[Round "02"]
[TimeControl "180+1"]
[Date "2022.06.21"]
[WhiteClock "0:00:17"]
[BlackClock "0:01:35"]

1. c4 {[%clk 0:03:00]}  e5 {[%clk 0:02:58]} 2. g3 {[%clk 0:03:00]}  Nf6 {[%clk 0:02:58]} 3. Bg2 {[%clk 0:03:00]}  Bc5 {[%clk 0:02:59]} 4. Nc3 {[%clk 0:02:54]}  O-O {[%clk 0:02:59]} 5. Nf3 {[%clk 0:02:43]}  Nc6 {[%clk 0:02:58]} 6. O-O {[%clk 0:02:40]}  d6 {[%clk 0:02:58]} 7. e3 {[%clk 0:02:34]}  a6 {[%clk 0:02:40]} 8. h3 {[%clk 0:02:12]}  Ba7 {[%clk 0:02:38]} 9. d3 {[%clk 0:01:57]}  h6 {[%clk 0:02:37]} 10. a3 {[%clk 0:01:52]}  Bf5 {[%clk 0:02:37]} 11. Kh2 {[%clk 0:01:46]}  Qd7 {[%clk 0:02:25]} 12. b4 {[%clk 0:01:45]}  Bh7 {[%clk 0:02:22]} 13. Bb2 {[%clk 0:01:43]}  Ne7 {[%clk 0:02:22]} 14. Qe2 {[%clk 0:01:23]}  Rad8 {[%clk 0:02:21]} 15. Rfd1 {[%clk 0:01:20]}  Rfe8 {[%clk 0:02:21]} 16. Rac1 {[%clk 0:01:19]}  Bb8 {[%clk 0:02:14]} 17. a4 {[%clk 0:01:03]}  c6 {[%clk 0:02:12]} 18. b5 {[%clk 0:01:03]}  axb5 {[%clk 0:02:05]} 19. axb5 {[%clk 0:01:04]}  d5 {[%clk 0:01:52]} 20. cxd5 {[%clk 0:00:51]}  cxd5 {[%clk 0:01:51]} 21. d4 {[%clk 0:00:51]}  e4 {[%clk 0:01:51]} 22. Ne5 {[%clk 0:00:51]}  Qf5 {[%clk 0:01:50]} 23. Na4 {[%clk 0:00:47]}  Ng6 {[%clk 0:01:50]} 24. Nxg6 {[%clk 0:00:35]}  Bxg6 {[%clk 0:01:51]} 25. b6 {[%clk 0:00:24]}  Bh5 {[%clk 0:01:50]} 26. Qd2 {[%clk 0:00:21]}  Bxd1 {[%clk 0:01:45]} 27. Rxd1 {[%clk 0:00:22]}  h5 {[%clk 0:01:45]} 28. Kg1 {[%clk 0:00:19]}  h4 {[%clk 0:01:39]} 29. g4 {[%clk 0:00:19]}  Nxg4 {[%clk 0:01:39]} 30. hxg4 {[%clk 0:00:19]}  Qxg4 {[%clk 0:01:40]} 31. Kf1 {[%clk 0:00:16]}  h3 {[%clk 0:01:36]} 32. Bh1 {[%clk 0:00:17]}  Re6 {[%clk 0:01:35]} 0-1


[Site "https://www.chess.com"]

[Event "Titled Tuesday Blitz June 21 Late 2022"]
[White "Kamsky, Gata"]
[Black "Levine, Joseph"]
[WhiteFideId "2000024"]
[BlackFideId "30940346"]
[WhiteElo "2645"]
[BlackElo "1802"]
[Result "1-0"]
[Round "02"]
[TimeControl "180+1"]
[Date "2022.06.21"]
[WhiteClock "0:00:43"]
[BlackClock "0:00:03"]

1. d4 {[%clk 0:03:00]}  d5 {[%clk 0:02:59]} 2. Bf4 {[%clk 0:02:58]}  Nf6 {[%clk 0:02:59]} 3. e3 {[%clk 0:02:57]}  Bf5 {[%clk 0:02:59]} 4. c4 {[%clk 0:02:52]}  e6 {[%clk 0:02:57]} 5. Nc3 {[%clk 0:02:50]}  Nbd7 {[%clk 0:02:56]} 6. Nf3 {[%clk 0:02:48]}  Bd6 {[%clk 0:02:54]} 7. Bxd6 {[%clk 0:02:47]}  cxd6 {[%clk 0:02:55]} 8. cxd5 {[%clk 0:02:48]}  exd5 {[%clk 0:02:54]} 9. Bd3 {[%clk 0:02:44]}  Bxd3 {[%clk 0:02:54]} 10. Qxd3 {[%clk 0:02:44]}  O-O {[%clk 0:02:55]} 11. O-O {[%clk 0:02:43]}  Qb6 {[%clk 0:02:49]} 12. b3 {[%clk 0:02:40]}  Rac8 {[%clk 0:02:47]} 13. Rfc1 {[%clk 0:02:40]}  a6 {[%clk 0:02:47]} 14. Ng5 {[%clk 0:02:31]}  Qa5 {[%clk 0:02:14]} 15. a3 {[%clk 0:02:18]}  h6 {[%clk 0:02:03]} 16. b4 {[%clk 0:02:17]}  Qc7 {[%clk 0:01:51]} 17. Nh3 {[%clk 0:02:12]}  Ne4 {[%clk 0:01:51]} 18. Ne2 {[%clk 0:02:11]}  Qb6 {[%clk 0:01:46]} 19. Nhf4 {[%clk 0:02:09]}  Nef6 {[%clk 0:01:27]} 20. Nc3 {[%clk 0:02:03]}  Qc6 {[%clk 0:01:17]} 21. h4 {[%clk 0:02:00]}  Nb6 {[%clk 0:01:01]} 22. a4 {[%clk 0:01:59]}  Qc4 {[%clk 0:00:48]} 23. Qb1 {[%clk 0:01:58]}  Qc6 {[%clk 0:00:33]} 24. b5 {[%clk 0:01:52]}  axb5 {[%clk 0:00:33]} 25. Nxb5 {[%clk 0:01:47]}  Qxc1+ {[%clk 0:00:31]} 26. Qxc1 {[%clk 0:01:47]}  Rxc1+ {[%clk 0:00:32]} 27. Rxc1 {[%clk 0:01:48]}  Nxa4 {[%clk 0:00:33]} 28. Nxd6 {[%clk 0:01:47]}  b6 {[%clk 0:00:26]} 29. Rc7 {[%clk 0:01:45]}  g5 {[%clk 0:00:24]} 30. hxg5 {[%clk 0:01:44]}  hxg5 {[%clk 0:00:25]} 31. Nd3 {[%clk 0:01:43]}  Ne8 {[%clk 0:00:22]} 32. Nxe8 {[%clk 0:01:41]}  Rxe8 {[%clk 0:00:22]} 33. Nb4 {[%clk 0:01:35]}  Rd8 {[%clk 0:00:19]} 34. g4 {[%clk 0:01:32]}  Rd6 {[%clk 0:00:15]} 35. Re7 {[%clk 0:01:29]}  Kf8 {[%clk 0:00:13]} 36. Re5 {[%clk 0:01:28]}  f6 {[%clk 0:00:09]} 37. Rxd5 {[%clk 0:01:28]}  Rxd5 {[%clk 0:00:09]} 38. Nxd5 {[%clk 0:01:28]}  Kf7 {[%clk 0:00:09]} 39. Kf1 {[%clk 0:01:26]}  Ke6 {[%clk 0:00:09]} 40. e4 {[%clk 0:01:27]}  Kf7 {[%clk 0:00:08]} 41. Ke2 {[%clk 0:01:27]}  b5 {[%clk 0:00:07]} 42. f3 {[%clk 0:01:24]}  Nb2 {[%clk 0:00:07]} 43. Kd2 {[%clk 0:01:24]}  Nc4+ {[%clk 0:00:07]} 44. Kc3 {[%clk 0:01:24]}  Nd6 {[%clk 0:00:06]} 45. Kb4 {[%clk 0:01:22]}  Ke6 {[%clk 0:00:07]} 46. Nc7+ {[%clk 0:01:18]}  Kd7 {[%clk 0:00:06]} 47. Nxb5 {[%clk 0:01:19]}  Nf7 {[%clk 0:00:06]} 48. Kc5 {[%clk 0:01:18]}  Nh8 {[%clk 0:00:04]} 49. Nc3 {[%clk 0:01:16]}  Ng6 {[%clk 0:00:05]} 50. Nb1 {[%clk 0:01:06]}  Nf4 {[%clk 0:00:02]} 51. Nd2 {[%clk 0:01:06]}  Nd3+ {[%clk 0:00:01]} 52. Kc4 {[%clk 0:01:06]}  Nf4 {[%clk 0:00:02]} 53. d5 {[%clk 0:01:06]}  Kd6 {[%clk 0:00:02]} 54. Kd4 {[%clk 0:01:06]}  Ne2+ {[%clk 0:00:03]} 55. Ke3 {[%clk 0:01:05]}  Nf4 {[%clk 0:00:02]} 56. Nc4+ {[%clk 0:01:04]}  Kc5 {[%clk 0:00:03]} 57. Na5 {[%clk 0:01:04]}  Kd6 {[%clk 0:00:02]} 58. Nc6 {[%clk 0:01:02]}  Ng6 {[%clk 0:00:01]} 59. Kd4 {[%clk 0:01:01]}  Nf4 {[%clk 0:00:02]} 60. Na5 {[%clk 0:00:58]}  Ne2+ {[%clk 0:00:02]} 61. Ke3 {[%clk 0:00:57]}  Nf4 {[%clk 0:00:02]} 62. Nb3 {[%clk 0:00:53]}  Ke5 {[%clk 0:00:02]} 63. Nc5 {[%clk 0:00:47]}  Kd6 {[%clk 0:00:01]} 64. Nd3 {[%clk 0:00:47]}  Ng2+ {[%clk 0:00:01]} 65. Kf2 {[%clk 0:00:44]}  Nh4 {[%clk 0:00:02]} 66. f4 {[%clk 0:00:44]}  Ng6 {[%clk 0:00:01]} 67. fxg5 {[%clk 0:00:43]}  fxg5 {[%clk 0:00:02]} 68. Ke3 {[%clk 0:00:43]}  Ne7 {[%clk 0:00:01]} 69. Kd4 {[%clk 0:00:43]}  Ng6 {[%clk 0:00:02]} 70. e5+ {[%clk 0:00:43]}  Kd7 {[%clk 0:00:03]} 71. Ke4 {[%clk 0:00:43]}  Ke7 {[%clk 0:00:03]} 72. Kf5 {[%clk 0:00:43]} 1-0


[Site "https://www.chess.com"]

[Event "Titled Tuesday Blitz June 21 Late 2022"]
[White "Kanyamarala, Trisha"]
[Black "Toncheva, Nadya"]
[WhiteFideId "45004722"]
[BlackFideId "2924056"]
[WhiteElo "2134"]
[BlackElo "1888"]
[Result "0-1"]
[Round "02"]
[TimeControl "180+1"]
[Date "2022.06.22"]
[WhiteClock "0:00:02"]
[BlackClock "0:00:29"]

1. c4 {[%clk 0:02:58]}  Nf6 {[%clk 0:02:59]} 2. Nc3 {[%clk 0:02:58]}  g6 {[%clk 0:02:58]} 3. g3 {[%clk 0:02:54]}  Bg7 {[%clk 0:02:58]} 4. Bg2 {[%clk 0:02:54]}  O-O {[%clk 0:02:58]} 5. Nf3 {[%clk 0:02:54]}  c6 {[%clk 0:02:58]} 6. O-O {[%clk 0:02:52]}  d5 {[%clk 0:02:59]} 7. d4 {[%clk 0:02:52]}  Bf5 {[%clk 0:02:57]} 8. Ne5 {[%clk 0:02:45]}  dxc4 {[%clk 0:02:52]} 9. Nxc4 {[%clk 0:02:44]}  Nbd7 {[%clk 0:02:51]} 10. e4 {[%clk 0:02:37]}  Be6 {[%clk 0:02:51]} 11. d5 {[%clk 0:02:34]}  cxd5 {[%clk 0:02:50]} 12. exd5 {[%clk 0:02:34]}  Bf5 {[%clk 0:02:51]} 13. h3 {[%clk 0:02:17]}  Nc5 {[%clk 0:02:42]} 14. Be3 {[%clk 0:02:02]}  Bd3 {[%clk 0:02:34]} 15. Bxc5 {[%clk 0:01:58]}  Bxc4 {[%clk 0:02:31]} 16. Re1 {[%clk 0:01:52]}  Re8 {[%clk 0:02:16]} 17. Qd2 {[%clk 0:00:55]}  Qd7 {[%clk 0:01:58]} 18. Rad1 {[%clk 0:00:48]}  b6 {[%clk 0:01:51]} 19. Bd4 {[%clk 0:00:38]}  Rad8 {[%clk 0:01:49]} 20. Qf4 {[%clk 0:00:29]}  Qc8 {[%clk 0:00:52]} 21. Be5 {[%clk 0:00:08]}  b5 {[%clk 0:00:47]} 22. a3 {[%clk 0:00:07]}  a5 {[%clk 0:00:47]} 23. Rd4 {[%clk 0:00:04]}  Qc5 {[%clk 0:00:44]} 24. g4 {[%clk 0:00:04]}  Nxd5 {[%clk 0:00:30]} 25. Nxd5 {[%clk 0:00:02]}  Bxd5 {[%clk 0:00:29]} 0-1


[Site "https://www.chess.com"]

[Event "Titled Tuesday Blitz June 21 Late 2022"]
[White "Konaplev, Anton"]
[Black "Domingo Nunez, Alejandro"]
[WhiteFideId "24165646"]
[BlackFideId "22245561"]
[WhiteElo "2208"]
[BlackElo "2215"]
[Result "0-1"]
[Round "02"]
[TimeControl "180+1"]
[Date "2022.06.22"]
[WhiteClock "0:00:04"]
[BlackClock "0:00:08"]

1. d4 {[%clk 0:03:00]}  Nf6 {[%clk 0:02:53]} 2. c4 {[%clk 0:03:00]}  g6 {[%clk 0:02:53]} 3. Nc3 {[%clk 0:03:00]}  Bg7 {[%clk 0:02:54]} 4. e4 {[%clk 0:03:00]}  d6 {[%clk 0:02:54]} 5. h3 {[%clk 0:03:00]}  O-O {[%clk 0:02:54]} 6. Be3 {[%clk 0:03:00]}  e5 {[%clk 0:02:54]} 7. d5 {[%clk 0:03:00]}  Kh8 {[%clk 0:02:55]} 8. g4 {[%clk 0:02:59]}  Ng8 {[%clk 0:02:55]} 9. h4 {[%clk 0:02:54]}  f5 {[%clk 0:02:53]} 10. gxf5 {[%clk 0:02:55]}  gxf5 {[%clk 0:02:54]} 11. exf5 {[%clk 0:02:55]}  Bxf5 {[%clk 0:02:53]} 12. Nf3 {[%clk 0:02:51]}  Nd7 {[%clk 0:02:40]} 13. Be2 {[%clk 0:02:45]}  a5 {[%clk 0:02:39]} 14. Qd2 {[%clk 0:02:35]}  Nc5 {[%clk 0:02:39]} 15. Rg1 {[%clk 0:02:34]}  Qf6 {[%clk 0:02:23]} 16. O-O-O {[%clk 0:01:54]}  a4 {[%clk 0:02:19]} 17. Ng5 {[%clk 0:01:42]}  a3 {[%clk 0:01:24]} 18. b4 {[%clk 0:01:26]}  Na4 {[%clk 0:01:10]} 19. Nge4 {[%clk 0:01:09]}  Qf7 {[%clk 0:01:08]} 20. Bd3 {[%clk 0:01:05]}  Nb2 {[%clk 0:01:07]} 21. h5 {[%clk 0:00:42]}  Nxd1 {[%clk 0:01:01]} 22. Qxd1 {[%clk 0:00:34]}  Bh6 {[%clk 0:00:58]} 23. Kb1 {[%clk 0:00:23]}  Bxe3 {[%clk 0:00:57]} 24. fxe3 {[%clk 0:00:23]}  Nh6 {[%clk 0:00:55]} 25. Ka1 {[%clk 0:00:20]}  Rg8 {[%clk 0:00:52]} 26. Rf1 {[%clk 0:00:21]}  Qe7 {[%clk 0:00:38]} 27. Qc2 {[%clk 0:00:14]}  Raf8 {[%clk 0:00:37]} 28. Rc1 {[%clk 0:00:10]}  Ng4 {[%clk 0:00:32]} 29. c5 {[%clk 0:00:10]}  Nxe3 {[%clk 0:00:30]} 30. Qd2 {[%clk 0:00:11]}  Ng2 {[%clk 0:00:19]} 31. c6 {[%clk 0:00:11]}  b6 {[%clk 0:00:19]} 32. Bb1 {[%clk 0:00:10]}  Nf4 {[%clk 0:00:19]} 33. Nb5 {[%clk 0:00:10]}  Rf7 {[%clk 0:00:17]} 34. h6 {[%clk 0:00:09]}  Bxe4 {[%clk 0:00:15]} 35. Bxe4 {[%clk 0:00:09]}  Qg5 {[%clk 0:00:15]} 36. Rh1 {[%clk 0:00:06]}  Qg3 {[%clk 0:00:10]} 37. Bb1 {[%clk 0:00:05]}  Qf3 {[%clk 0:00:09]} 38. Re1 {[%clk 0:00:04]}  Rg2 {[%clk 0:00:09]} 39. Qd1 {[%clk 0:00:03]}  Qxd5 {[%clk 0:00:08]} 40. Qxd5 {[%clk 0:00:02]}  Nxd5 {[%clk 0:00:09]} 41. Rd1 {[%clk 0:00:03]}  Nxb4 {[%clk 0:00:09]} 42. Be4 {[%clk 0:00:02]}  Re2 {[%clk 0:00:08]} 43. Nc3 {[%clk 0:00:02]}  Re3 {[%clk 0:00:08]} 44. Rc1 {[%clk 0:00:03]}  Rxc3 {[%clk 0:00:07]} 45. Rxc3 {[%clk 0:00:03]}  Rf1+ {[%clk 0:00:07]} 46. Bb1 {[%clk 0:00:04]}  e4 {[%clk 0:00:07]} 47. Rxa3 {[%clk 0:00:04]}  Nc2+ {[%clk 0:00:07]} 48. Kb2 {[%clk 0:00:04]}  Nxa3 {[%clk 0:00:08]} 49. Bxe4 {[%clk 0:00:04]}  Nc4+ {[%clk 0:00:08]} 50. Kc3 {[%clk 0:00:04]}  Ne5 {[%clk 0:00:09]} 51. Kd4 {[%clk 0:00:04]}  Ra1 {[%clk 0:00:09]} 52. Bd5 {[%clk 0:00:04]}  Ng4 {[%clk 0:00:08]} 53. Ke4 {[%clk 0:00:04]}  Nf6+ {[%clk 0:00:08]} 0-1


[Site "https://www.chess.com"]

[Event "Titled Tuesday Blitz June 21 Late 2022"]
[White "Kovacevic, Radmila"]
[Black "Jian, Alex"]
[WhiteFideId "933171"]
[BlackFideId "30901022"]
[WhiteElo "2115"]
[BlackElo "2111"]
[Result "1-0"]
[Round "02"]
[TimeControl "180+1"]
[Date "2022.06.22"]
[WhiteClock "0:00:14"]
[BlackClock "0:00:10"]

1. e4 {[%clk 0:03:00]}  e5 {[%clk 0:02:59]} 2. d4 {[%clk 0:03:00]}  Nc6 {[%clk 0:02:51]} 3. d5 {[%clk 0:03:00]}  Nce7 {[%clk 0:02:51]} 4. f4 {[%clk 0:03:00]}  exf4 {[%clk 0:02:49]} 5. Bxf4 {[%clk 0:02:59]}  Ng6 {[%clk 0:02:48]} 6. Bg3 {[%clk 0:02:59]}  Bc5 {[%clk 0:02:45]} 7. Nf3 {[%clk 0:02:54]}  d6 {[%clk 0:02:38]} 8. Bb5+ {[%clk 0:02:42]}  Bd7 {[%clk 0:02:36]} 9. Qd3 {[%clk 0:02:41]}  Nf6 {[%clk 0:02:31]} 10. Nbd2 {[%clk 0:02:34]}  O-O {[%clk 0:02:29]} 11. h4 {[%clk 0:02:11]}  Nh5 {[%clk 0:02:19]} 12. Bxd7 {[%clk 0:01:41]}  Nxg3 {[%clk 0:02:09]} 13. Rh3 {[%clk 0:01:39]}  Nf4 {[%clk 0:01:56]} 14. Qc3 {[%clk 0:01:31]}  Nge2 {[%clk 0:01:45]} 15. Qc4 {[%clk 0:01:07]}  Qxd7 {[%clk 0:01:39]} 16. Rh1 {[%clk 0:01:00]}  Qg4 {[%clk 0:01:25]} 17. Rf1 {[%clk 0:00:31]}  Qg3+ {[%clk 0:01:15]} 18. Kd1 {[%clk 0:00:31]}  b5 {[%clk 0:01:11]} 19. Qb3 {[%clk 0:00:26]}  a5 {[%clk 0:01:05]} 20. Ne1 {[%clk 0:00:25]}  Qg4 {[%clk 0:00:58]} 21. Qf3 {[%clk 0:00:23]}  Qxf3 {[%clk 0:00:49]} 22. Rxf3 {[%clk 0:00:24]}  Bd4 {[%clk 0:00:07]} 23. c3 {[%clk 0:00:20]}  Be5 {[%clk 0:00:08]} 24. g3 {[%clk 0:00:20]}  Rfe8 {[%clk 0:00:08]} 25. gxf4 {[%clk 0:00:20]}  Nxf4 {[%clk 0:00:09]} 26. Nd3 {[%clk 0:00:20]}  Nxd3 {[%clk 0:00:08]} 27. Rxd3 {[%clk 0:00:20]}  Rab8 {[%clk 0:00:08]} 28. Kc2 {[%clk 0:00:21]}  b4 {[%clk 0:00:08]} 29. c4 {[%clk 0:00:18]}  a4 {[%clk 0:00:08]} 30. Rf1 {[%clk 0:00:17]}  Bf6 {[%clk 0:00:08]} 31. Rxf6 {[%clk 0:00:13]}  gxf6 {[%clk 0:00:08]} 32. Rf3 {[%clk 0:00:11]}  Kg7 {[%clk 0:00:06]} 33. Rg3+ {[%clk 0:00:11]}  Kf8 {[%clk 0:00:07]} 34. Rf3 {[%clk 0:00:11]}  Re5 {[%clk 0:00:06]} 35. Rxf6 {[%clk 0:00:10]}  Rh5 {[%clk 0:00:05]} 36. Rf4 {[%clk 0:00:11]}  Re8 {[%clk 0:00:06]} 37. b3 {[%clk 0:00:10]}  axb3+ {[%clk 0:00:05]} 38. Kxb3 {[%clk 0:00:11]}  Rb8 {[%clk 0:00:04]} 39. Nf3 {[%clk 0:00:11]}  Rh6 {[%clk 0:00:04]} 40. e5 {[%clk 0:00:10]}  dxe5 {[%clk 0:00:04]} 41. Nxe5 {[%clk 0:00:11]}  Ke8 {[%clk 0:00:04]} 42. Nc6 {[%clk 0:00:11]}  Ra8 {[%clk 0:00:03]} 43. Nxb4 {[%clk 0:00:11]}  Rg6 {[%clk 0:00:03]} 44. Re4+ {[%clk 0:00:11]}  Kd7 {[%clk 0:00:02]} 45. Kc3 {[%clk 0:00:10]}  Rg3+ {[%clk 0:00:03]} 46. Kd4 {[%clk 0:00:11]}  Ra4 {[%clk 0:00:03]} 47. Nc6 {[%clk 0:00:10]}  Raa3 {[%clk 0:00:03]} 48. Ne5+ {[%clk 0:00:10]}  Kc8 {[%clk 0:00:01]} 49. Rf4 {[%clk 0:00:10]}  Rh3 {[%clk 0:00:02]} 50. Rxf7 {[%clk 0:00:10]}  Kb7 {[%clk 0:00:03]} 51. d6 {[%clk 0:00:09]}  Rxa2 {[%clk 0:00:03]} 52. Rxc7+ {[%clk 0:00:09]}  Kb8 {[%clk 0:00:03]} 53. Rxh7 {[%clk 0:00:09]}  Rd2+ {[%clk 0:00:03]} 54. Kc5 {[%clk 0:00:09]}  Re3 {[%clk 0:00:03]} 55. Nc6+ {[%clk 0:00:10]}  Kc8 {[%clk 0:00:03]} 56. Rh8+ {[%clk 0:00:09]}  Kd7 {[%clk 0:00:03]} 57. Rd8+ {[%clk 0:00:10]}  Ke6 {[%clk 0:00:04]} 58. Re8+ {[%clk 0:00:10]}  Kf7 {[%clk 0:00:04]} 59. Rxe3 {[%clk 0:00:10]}  Rh2 {[%clk 0:00:05]} 60. Re7+ {[%clk 0:00:10]}  Kf8 {[%clk 0:00:05]} 61. Re4 {[%clk 0:00:11]}  Rd2 {[%clk 0:00:05]} 62. d7 {[%clk 0:00:11]}  Rd1 {[%clk 0:00:05]} 63. d8=Q+ {[%clk 0:00:11]}  Rxd8 {[%clk 0:00:06]} 64. Nxd8 {[%clk 0:00:11]}  Kg7 {[%clk 0:00:06]} 65. Ne6+ {[%clk 0:00:12]}  Kh6 {[%clk 0:00:07]} 66. Re5 {[%clk 0:00:11]}  Kg6 {[%clk 0:00:06]} 67. Kd5 {[%clk 0:00:12]}  Kh6 {[%clk 0:00:07]} 68. c5 {[%clk 0:00:12]}  Kh7 {[%clk 0:00:08]} 69. c6 {[%clk 0:00:13]}  Kh6 {[%clk 0:00:09]} 70. c7 {[%clk 0:00:14]}  Kh7 {[%clk 0:00:09]} 71. c8=Q {[%clk 0:00:14]}  Kh6 {[%clk 0:00:10]} 72. Qh8+ {[%clk 0:00:14]}  Kg6 {[%clk 0:00:10]} 73. Qg7# {[%clk 0:00:14]} 1-0


[Site "https://www.chess.com"]

[Event "Titled Tuesday Blitz June 21 Late 2022"]
[White "Koziorowicz, Michal"]
[Black "Makarian, Rudik"]
[WhiteFideId "21809194"]
[BlackFideId "44105681"]
[WhiteElo "2202"]
[BlackElo "2398"]
[Result "0-1"]
[Round "02"]
[TimeControl "180+1"]
[Date "2022.06.22"]
[WhiteClock "0:01:40"]
[BlackClock "0:01:33"]

1. e4 {[%clk 0:03:00]}  c5 {[%clk 0:02:59]} 2. Nf3 {[%clk 0:03:01]}  e6 {[%clk 0:02:58]} 3. g3 {[%clk 0:03:00]}  Nc6 {[%clk 0:02:58]} 4. Bg2 {[%clk 0:03:00]}  Nf6 {[%clk 0:02:59]} 5. Nc3 {[%clk 0:03:00]}  d6 {[%clk 0:03:00]} 6. O-O {[%clk 0:02:56]}  Bd7 {[%clk 0:03:00]} 7. d3 {[%clk 0:02:53]}  Be7 {[%clk 0:02:59]} 8. Ne1 {[%clk 0:02:52]}  O-O {[%clk 0:02:59]} 9. f4 {[%clk 0:02:52]}  Rb8 {[%clk 0:03:00]} 10. g4 {[%clk 0:02:51]}  Ne8 {[%clk 0:02:56]} 11. g5 {[%clk 0:02:51]}  b5 {[%clk 0:02:57]} 12. h4 {[%clk 0:02:50]}  Nd4 {[%clk 0:02:57]} 13. Qd2 {[%clk 0:02:48]}  f5 {[%clk 0:02:54]} 14. Nd1 {[%clk 0:02:45]}  e5 {[%clk 0:02:44]} 15. c3 {[%clk 0:02:44]}  Ne6 {[%clk 0:02:43]} 16. fxe5 {[%clk 0:02:42]}  fxe4 {[%clk 0:02:41]} 17. Rxf8+ {[%clk 0:02:43]}  Bxf8 {[%clk 0:02:39]} 18. Bxe4 {[%clk 0:02:40]}  dxe5 {[%clk 0:02:39]} 19. Nf3 {[%clk 0:02:40]}  Nd6 {[%clk 0:02:37]} 20. Nxe5 {[%clk 0:02:37]}  Nxe4 {[%clk 0:02:28]} 21. dxe4 {[%clk 0:02:38]}  Be8 {[%clk 0:02:29]} 22. Qxd8 {[%clk 0:02:38]}  Rxd8 {[%clk 0:02:30]} 23. Nf2 {[%clk 0:02:38]}  Bd6 {[%clk 0:02:18]} 24. Nf3 {[%clk 0:02:24]}  Bh5 {[%clk 0:02:17]} 25. Ne1 {[%clk 0:02:20]}  Bg3 {[%clk 0:02:13]} 26. Be3 {[%clk 0:02:18]}  Bxh4 {[%clk 0:02:11]} 27. Nh3 {[%clk 0:02:17]}  Bg4 {[%clk 0:02:05]} 28. Ng2 {[%clk 0:02:13]}  Bg3 {[%clk 0:02:01]} 29. Nf2 {[%clk 0:02:14]}  Bf3 {[%clk 0:02:00]} 30. a4 {[%clk 0:01:53]}  Rb8 {[%clk 0:01:37]} 31. axb5 {[%clk 0:01:44]}  Rxb5 {[%clk 0:01:38]} 32. Rxa7 {[%clk 0:01:45]}  Rxb2 {[%clk 0:01:37]} 33. Re7 {[%clk 0:01:45]}  Rb1+ {[%clk 0:01:33]} 34. Bc1 {[%clk 0:01:38]}  Rxc1+ {[%clk 0:01:32]} 35. Nd1 {[%clk 0:01:39]}  Rxd1+ {[%clk 0:01:33]} 36. Ne1 {[%clk 0:01:40]}  Rxe1# {[%clk 0:01:33]} 0-1


[Site "https://www.chess.com"]